Cogmind - Beta 10.2 @@@ ROGUE MODE // 2021.08.27 @ 19:53:39 Player: Savant Result: Destroyed by S-27 Virus with Autogun Performance ------------- Evolutions (3) 1500 Regions Visited (8) 1600 Robots Destroyed (75) 375 Value Destroyed (2681) 2681 Prototype IDs (30) 600 Alien Tech Used (0) 0 Bonus (427) 427 TOTAL SCORE: 7183 Bonus ------- Follower Combat Kills 157 Aligned with FarCom 300 Friendly Fire -30 Cogmind --------- Core Integrity 0/700 Matter 300/300 Energy 3/100 System Corruption 1% Temperature Cool (4) Movement Core (400) Ox7 Location -7/Lower Caves Parts ------- > --- POWER (1) -------- (None) > --- PROPULSION (4) --- Improved Flight Unit Improved Flight Unit Improved Flight Unit Improved Flight Unit > --- UTILITY (6) ------ Medium Storage Unit Large Storage Unit > --- WEAPON (2) ------- (None) > --- INVENTORY (14) --- Improved Flight Unit Improved Flight Unit Improved Heat Sink Compact Battery (0) Advanced Weight Redist. System Advanced Terrain Scanner Improved Terrain Scan Processor Cloak of Protection Hacking Suite Hacking Suite System Shield System Shield System Backup Module Chainsword Peak State ------------ > --- POWER ------------ Micro Nuclear Core > --- PROPULSION ------- Improved Carbon-fiber Leg Improved Carbon-fiber Leg Armored Huge Wheel > --- UTILITY ---------- Medium Storage Unit Medium Storage Unit Large Storage Unit Large Storage Unit Advanced Terrain Scanner System Shield > --- WEAPON ----------- Improved EM Pulse Cannon Cooled Particle Cannon > --- INVENTORY -------- Light Nuclear Core Improved Flight Unit Improved Flight Unit Improved Flight Unit Improved Flight Unit Improved Flight Unit Improved Flight Unit Improved Heat Sink Large Battery Advanced Weight Redist. System Improved Terrain Scan Processor Cloak of Protection Improved Utility Shielding Improved Light Armor Plating Hacking Suite Hacking Suite System Shield System Backup Module Arc Projector Advanced Beam Rifle Plasma Cannon Advanced EMP Blaster Mini Grenade Launcher Chainsword [Rating: 47] Favorites ----------- Power Ion Engine Engine Ion Engine Power Core Micro Nuclear Core Propulsion Improved Carbon-fiber Leg Treads Improved Treads Leg Improved Carbon-fiber Leg Wheel Armored Wheel Flight Unit Improved Flight Unit Utility Large Storage Unit Device Advanced Terrain Scanner Storage Large Storage Unit Hackware System Shield Protection Weapon Shielding Weapon Improved Light Cannon Energy Gun Advanced Beam Rifle Energy Cannon Cooled Particle Cannon Ballistic Gun Light Assault Rifle Ballistic Cannon Improved Light Cannon Launcher Mini Grenade Launcher Slashing Weapon Katana Build | -11 -10 -10 -10 -9 -8 -7 -7 -7 ------- Run | Scr Mat Min Exi Min Mat Fac Low Low Slots Evolved 6 | . . . . . 4 2 . . Power . | . . . . . . . . . Propulsion 2 | . . . . . 2 . . . Utility 4 | . . . . . 2 2 . . Weapon . | . . . . . . . . . Parts Attached 160 | 6 10 . 7 . 37 70 11 19 Power 11 | 1 1 . . . 4 1 1 3 Engine 5 | 1 1 . . . 2 . 1 . Core 6 | . . . . . 2 1 . 3 Reactor . | . . . . . . . . . Propulsion 30 | 2 4 . . . 10 9 . 5 Treads 5 | 1 2 . . . 1 . . 1 Leg 12 | . . . . . 5 7 . . Wheel 9 | 1 2 . . . 4 2 . . Hover . | . . . . . . . . . Flight 4 | . . . . . . . . 4 Utility 53 | 1 2 . 3 . 8 29 4 6 Device 27 | . . . 1 . 3 19 2 2 Storage 7 | 1 1 . 2 . 1 2 . . Processor . | . . . . . . . . . Hackware 2 | . . . . . 1 1 . . Protection 17 | . 1 . . . 3 7 2 4 Artifact . | . . . . . . . . . Weapon 66 | 2 3 . 4 . 15 31 6 5 Energy Gun 27 | . . . . . 8 15 3 1 Energy Cannon 13 | . . . 2 . . 9 1 1 Ballistic Gun 4 | 2 1 . . . . . 1 . Ballistic Cannon 6 | . 2 . 2 . 2 . . . Launcher 7 | . . . . . 1 3 1 2 Special Weapon . | . . . . . . . . . Impact Weapon . | . . . . . . . . . Slashing Weapon 9 | . . . . . 4 4 . 1 Piercing Weapon . | . . . . . . . . . Special Melee Weapon . | . . . . . . . . . Unidentified Prototypes 3 | . . . . . 1 2 . . Parts Lost 33 | . 1 . . . 9 8 1 14 Power 6 | . . . . . 2 1 . 3 Propulsion 12 | . 1 . . . 4 3 . 4 Utility 5 | . . . . . 1 1 . 3 Weapon 10 | . . . . . 2 3 1 4 Highest Loss Streak 13 | . 1 . . . 5 2 1 13 Average Slot Usage (%) 95 | . 99 100 99 100 98 95 91 77 Engine 6 | . 14 14 14 14 3 3 4 4 Core 2 | . . . . . 4 3 2 . Treads 5 | . 14 14 14 14 10 . . 3 Leg 10 | . . . . . 8 22 7 . Wheel 10 | . 14 14 14 14 16 3 15 9 Device 4 | . . . . . 4 6 6 3 Storage 26 | . 14 14 19 28 27 29 30 26 Hackware 3 | . . . . . 1 6 7 5 Protection 2 | . 13 14 8 . 2 1 . 1 Energy Gun 5 | . . . . . 6 10 5 . Energy Cannon 2 | . . . . . . 3 4 4 Ballistic Gun 2 | . 22 . . . . . 3 4 Ballistic Cannon 6 | . 5 28 27 28 8 . . . Naked Turns . | . . . . . . . . . Heaviest Build 72 | 9 30 30 45 45 62 72 72 72 Greatest Support 71 | 10 20 12 12 12 71 71 40 40 Greatest Overweight (x) 4 | . 2 2 3 3 4 2 1 1 Average Overweight (x) 1 | . . 2 2 3 1 . 1 . Largest Inventory Capacity 24 | 6 10 10 16 16 20 24 24 24 Average Capacity 19 | 5 6 10 12 16 19 23 24 21 Most Carried 24 | 6 10 10 12 13 20 24 24 24 Average Carried 19 | 3 5 10 10 12 18 23 23 21 Final Capacity 24 | 6 10 10 16 16 20 24 24 14 Final Carried 24 | 6 10 10 12 13 20 24 24 14 Class Distribution -------------------- 63% | Hauler-Mutant 24% | Mutant 4% | Hauler-Skirmisher 4% | Hauler-Assassin 3% | Scavenger-Mutant Dominant Class ---------------- Mutant | -10/Materials Mutant | -10/Mines Mutant | -10/Exiles Mutant | -9/Mines Hauler-Mutant | -8/Materials Hauler-Mutant | -7/Factory Hauler-Mutant | -7/Lower Caves Hauler-Mutant | -7/Lower Caves Resources | -11 -10 -10 -10 -9 -8 -7 -7 -7 ----------- Run | Scr Mat Min Exi Min Mat Fac Low Low Matter Collected 2403 | 216 172 . . 198 650 762 155 250 Remotely . | . . . . . . . . . Salvage Created 2825 | . 346 . . . 784 1280 105 310 Parts 143 | . 24 . . . 37 63 6 13 Haulers Intercepted 3 | . . . . . 2 1 . . Recyclers Shooed 3 | . 2 . . . 1 . . . Parts Field Recycled . | . . . . . . . . . Retrieved Matter . | . . . . . . . . . Parts Self-Destructed 12 | . . . . . . . 1 11 Prevented 5 | . . . . . . . 4 1 Kills | -11 -10 -10 -10 -9 -8 -7 -7 -7 ------- Run | Scr Mat Min Exi Min Mat Fac Low Low Combat Hostiles Destroyed 61 | . 11 . . . 13 21 4 12 Melee 1 | . . . . . . . . 1 Guns 24 | . 11 . . . 3 7 . 3 Cannons 15 | . . . . . 8 6 1 . AOE 18 | . . . . . 2 5 3 8 Classes Destroyed 13 | . 2 . . . 6 4 . 1 Worker 1 | . . . . . . 1 . . Builder 1 | . . . . . . 1 . . Hauler 3 | . . . . . 2 1 . . Recycler 2 | . . . . . 2 . . . Operator 5 | . . . . . 4 1 . . Watcher 2 | . . . . . 2 . . . Swarmer 16 | . 3 . . . 2 1 3 7 Grunt 29 | . 8 . . . 8 11 . 2 Brawler 4 | . . . . . . 3 . 1 Duelist 1 | . . . . . . . . 1 Sentry 4 | . . . . . 1 1 1 1 Hunter 4 | . . . . . 2 2 . . Programmer 3 | . . . . . . 3 . . Best Kill Streak 9 | . 5 . . . 4 4 3 9 Combat Bots Only 9 | . 5 . . . 4 4 3 9 Max Kills in Single Turn 3 | . 1 . . . 2 2 1 3 Gunslinging 1 | . . . . . . 1 . . Exploded 3 | . . . . . 2 2 1 3 Melee 1 | . . . . . . . . 1 Uniques/NPCs Destroyed . | . . . . . . . . . Combat | -11 -10 -10 -10 -9 -8 -7 -7 -7 -------- Run | Scr Mat Min Exi Min Mat Fac Low Low Damage Taken 6485 | . 456 . . 3 1605 2216 237 1968 Core 1002 | . 104 . . 3 184 210 26 475 Absorbed by Shields . | . . . . . . . . . Core Remaining (%) 74 | 100 . . . 57 66 . . . Volleys Fired 219 | . 41 . . 1 58 91 8 20 Largest 2 | . 2 . . 2 2 2 2 2 Hottest 141 | . 40 . . 78 122 141 85 91 Shots Fired 403 | . 82 . . 2 109 164 12 34 Gun 255 | . 82 . . . 38 117 4 14 Cannon 128 | . . . . 2 66 44 4 12 Launcher 20 | . . . . . 5 3 4 8 Special . | . . . . . . . . . Kinetic 160 | . 82 . . 2 66 . . 10 Thermal 131 | . . . . . 38 73 4 16 Explosive 17 | . . . . . 5 3 4 5 Electromagnetic 95 | . . . . . . 88 4 3 Robot Hit Streak 14 | . 11 . . 8 14 9 9 13 Robot Miss Streak 6 | . 3 . . 1 6 2 . 5 Penetration Max . | . . . . . . . . . Secondary Targets 3 | . 1 . . . . 2 . . Max Gunslinging Chain 1 | . 1 . . . . 1 . . Shots Hit Robots 302 | . 60 . . 1 95 109 8 29 Core Hits 162 | . 24 . . . 50 45 8 35 Critical Hits . | . . . . . . . . . Critical Kills . | . . . . . . . . . Critical Parts Destroyed . | . . . . . . . . . Melee Attacks 29 | . . . . . 15 11 . 3 Impact . | . . . . . . . . . Slashing 29 | . . . . . 15 11 . 3 Piercing . | . . . . . . . . . Sneak Attacks 5 | . . . . . 5 . . . Combat Hostiles . | . . . . . . . . . Follow-up Attacks . | . . . . . . . . . Damage Inflicted 7202 | . 471 . . 59 2610 2220 356 1486 Guns 2615 | . 471 . . . 648 1224 41 231 Cannons 2029 | . . . . 49 995 634 107 244 Explosions 1732 | . . . . . 200 362 208 962 Melee 816 | . . . . . 767 . . 49 Ramming 10 | . . . . 10 . . . . Kinetic 1686 | . 471 . . 49 995 . . 171 Thermal 2227 | . . . . . 648 1168 107 304 Explosive 1333 | . . . . . 200 102 208 823 Electromagnetic 1130 | . . . . . . 950 41 139 Impact . | . . . . . . . . . Slashing 816 | . . . . . 767 . . 49 Piercing . | . . . . . . . . . Highest Corruption 1 | . . . . . 1 1 . 1 Average Corruption 1 | . . . . . 1 1 . 1 Corruption Purged 1 | . . . . . . 1 . . Effects 15 | . . . . . 2 11 . 2 Message Errors 8 | . . . . . 2 5 . 1 Energy Discharges 2 | . . . . . . 2 . . Data Loss (minor) 3 | . . . . . . 3 . . Targeting Errors 2 | . . . . . . 1 . 1 Overload Shots . | . . . . . . . . . Overflow Damage 621 | . . . . . 534 31 . 56 Projectiles 52 | . . . . . . 31 . 21 Explosions 87 | . . . . . 52 . . 35 Melee 482 | . . . . . 482 . . . Knockbacks 21 | . . . . 1 20 . . . Impact . | . . . . . . . . . Kinetic 20 | . . . . 1 19 . . . Secondary 1 | . . . . . 1 . . . Self-Inflicted Damage 260 | . . . . 3 41 102 . 114 Shots 7 | . . . . . 1 2 . 4 Rammed 2 | . . . . 2 . . . . Targets Rammed 2 | . . . . 2 . . . . Kicked . | . . . . . . . . . Crushed . | . . . . . . . . . Highest Temperature 311 | . 18 . . 18 267 311 42 47 Average Temperature 70 | . 8 . . 12 66 95 24 15 Received Heat Transfer 1710 | . 210 . . . 495 642 30 333 Effects 3 | . . . . . 1 2 . . Interference 3 | . . . . . 1 2 . . Siege Activations . | . . . . . . . . . Robots Corrupted 3 | . . . . . . 3 . . Combat Hostiles 3 | . . . . . . 3 . . Parts Fried 6 | . . . . . . 6 . . Impact Corruptions . | . . . . . . . . . Robots Melted . | . . . . . . . . . Combat Hostiles . | . . . . . . . . . Parts Melted 3 | . . . . . . 3 . . Heat Transferred 3536 | . . . . . 1184 1760 148 444 Parts Sabotaged . | . . . . . . . . . Parts Stolen . | . . . . . . . . . Parts Stripped . | . . . . . . . . . Power Chain Reactions 3 | . . . . . . 3 . . Missiles Intercepted . | . . . . . . . . . Alert | -11 -10 -10 -10 -9 -8 -7 -7 -7 ------- Run | Scr Mat Min Exi Min Mat Fac Low Low Peak Influence 350 | . 350 70 . 39 349 304 . . Initial 152 | . . 70 . . 14 152 . . Average 141 | . 190 70 . . 149 163 . . Maximum Alert Level 1 | . 1 . . . 1 1 . . Low Security (%) 70 | 100 55 100 . 100 70 64 . . Level 1 29 | . 44 . . . 29 35 . . Level 2 . | . . . . . . . . . Level 3 . | . . . . . . . . . Level 4 . | . . . . . . . . . Level 5 . | . . . . . . . . . High Security . | . . . . . . . . . Max Security . | . . . . . . . . . Squads Dispatched 17 | . 5 . . . 4 7 . 1 Investigation 4 | . 2 . . . . 2 . . Extermination 3 | . . . . . . 3 . . Reinforcement 9 | . 3 . . . 4 2 . . Assault 1 | . . . . . . . . 1 Garrison . | . . . . . . . . . Intercept . | . . . . . . . . . Construction Impeded . | . . . . . . . . . Haulers Reinforced . | . . . . . . . . . Stealth | -11 -10 -10 -10 -9 -8 -7 -7 -7 --------- Run | Scr Mat Min Exi Min Mat Fac Low Low Distress Signals 7 | . 2 . . . 4 1 . . Communications Jammed . | . . . . . . . . . Distress Signals . | . . . . . . . . . Times Spotted 133 | . 24 . . 1 49 32 4 23 Peak Tracking Total 9 | . 5 . . 1 7 4 3 9 Tactical Retreats 16 | . 2 . . . 9 4 . 1 Traps | -11 -10 -10 -10 -9 -8 -7 -7 -7 ------- Run | Scr Mat Min Exi Min Mat Fac Low Low Traps Triggered 7 | . 1 . . . 3 3 . . Indirectly . | . . . . . . . . . Trap Hack Attempts . | . . . . . . . . . Triggered . | . . . . . . . . . Disarmed . | . . . . . . . . . Reprogrammed . | . . . . . . . . . Reused . | . . . . . . . . . Traps Extracted . | . . . . . . . . . Installed . | . . . . . . . . . Triggered . | . . . . . . . . . Machines | -11 -10 -10 -10 -9 -8 -7 -7 -7 ---------- Run | Scr Mat Min Exi Min Mat Fac Low Low Machines Disabled 4 | . . . . . 1 3 . . Max in Single Turn 1 | . . . . . 1 1 . . Machines Sabotaged . | . . . . . . . . . Garrisons Compromised . | . . . . . . . . . Overloaded Fab Kills . | . . . . . . . . . Fab Network Shutdowns . | . . . . . . . . . Hacking | -11 -10 -10 -10 -9 -8 -7 -7 -7 --------- Run | Scr Mat Min Exi Min Mat Fac Low Low Machines Accessed 21 | . 2 . 2 . 6 9 2 . Terminals 12 | . 1 . . . 5 6 . . Fabricators 2 | . . . . . . 2 . . Repair Stations . | . . . . . . . . . Recycling Units 1 | . 1 . . . . . . . Scanalyzers 2 | . . . . . 1 1 . . Garrison Access . | . . . . . . . . . Total Hacks 69 | . 4 . 2 . 23 38 2 . Successful 40 | . 3 . 2 . 11 22 2 . Failed 29 | . 1 . . . 12 16 . . Catastrophic 4 | . . . . . 1 3 . . Database Lockouts . | . . . . . . . . . Manual 30 | . 1 . 1 . 10 18 . . Terminals 40 | . 2 . . . 14 24 . . Fabricators 11 | . . . . . . 11 . . Repair Stations . | . . . . . . . . . Recycling Units 2 | . 2 . . . . . . . Scanalyzers 12 | . . . . . 9 3 . . Garrison Access . | . . . . . . . . . Terminal Hacks 14 | . 1 . 2 . 2 7 2 . Record 1 | . . . 1 . . . . . Part Schematic 1 | . . . . . . 1 . . Robot Analysis 1 | . 1 . . . . . . . Prototype ID Bank 1 | . . . . . . 1 . . Open Door 2 | . . . . . . . 2 . Level Access Points 1 | . . . . . . 1 . . Branch Access Points 2 | . . . . . 1 1 . . Terminal Index 1 | . . . . . . 1 . . Fabricator Index 1 | . . . . . . 1 . . Unreport Threat 1 | . . . . . . 1 . . Locate Traps 1 | . . . . . 1 . . . EX-Prototype ID Bank 1 | . . . 1 . . . . . Fabricator Hacks 7 | . . . . . . 7 . . Load Schematic 2 | . . . . . . 2 . . Build 5 | . . . . . . 5 . . Repair Station Hacks . | . . . . . . . . . Recycling Unit Hacks 1 | . 1 . . . . . . . Report Inventory 1 | . 1 . . . . . . . Scanalyzer 9 | . . . . . 7 2 . . Insert Component 4 | . . . . . 3 1 . . Analyze 5 | . . . . . 4 1 . . Garrison Access Hacks . | . . . . . . . . . Unauthorized Hacks 9 | . 1 . . . 2 6 . . Terminals 6 | . . . . . 2 4 . . Track 1 | . . . . . . 1 . . Botnet 5 | . . . . . 2 3 . . Fabricators 2 | . . . . . . 2 . . Prioritize 1 | . . . . . . 1 . . Siphon 1 | . . . . . . 1 . . Repair Stations . | . . . . . . . . . Recycling Units 1 | . 1 . . . . . . . Tunnel 1 | . 1 . . . . . . . Scanalyzers . | . . . . . . . . . Garrison Access . | . . . . . . . . . Data Cores Recovered . | . . . . . . . . . Used . | . . . . . . . . . Hacking Detections 16 | . 2 . . . 6 8 . . Full Trace Events 2 | . . . . . . 2 . . Feedback Events . | . . . . . . . . . Feedback Blocked . | . . . . . . . . . Robot Schematics Acquired . | . . . . . . . . . Robots Built . | . . . . . . . . . Matter . | . . . . . . . . . Time . | . . . . . . . . . Total Robot Build Rating . | . . . . . . . . . Part Schematics Acquired 4 | . . . . . 2 2 . . Parts Built 5 | . . . . . . 5 . . Matter 712 | . . . . . . 712 . . Time 282 | . . . . . . 282 . . Total Part Build Rating 11 | . . . . . . 11 . . Parts Repaired . | . . . . . . . . . Time . | . . . . . . . . . Parts Recycled . | . . . . . . . . . Recycled Matter . | . . . . . . . . . Retrieved Matter . | . . . . . . . . . Retrieved Components . | . . . . . . . . . Parts Scanalyzed 4 | . . . . . 3 1 . . Part Schematics Acquired 3 | . . . . . 2 1 . . Parts Damaged . | . . . . . . . . . Bothacking | -11 -10 -10 -10 -9 -8 -7 -7 -7 ------------ Run | Scr Mat Min Exi Min Mat Fac Low Low Used RIF Installer . | . . . . . . . . . Robots Hacked . | . . . . . . . . . Non-combat . | . . . . . . . . . Combat . | . . . . . . . . . Robot Hacks Applied . | . . . . . . . . . Relay Couplers Released . | . . . . . . . . . Robots Rewired . | . . . . . . . . . Allies Hacked . | . . . . . . . . . Hacks Repelled . | . . . . . . . . . Allies | -11 -10 -10 -10 -9 -8 -7 -7 -7 -------- Run | Scr Mat Min Exi Min Mat Fac Low Low Total Allies 6 | . . . . 5 . . . 1 Largest Group 5 | . . . . 5 5 . . 1 Highest-Rated Group 146 | . . . . 92 92 . . 146 Highest-Rated Ally 146 | . . . . 31 31 . . 146 Total Orders . | . . . . . . . . . Ally Attacks 42 | . . . . 8 34 . . . Total Damage 552 | . . . . 119 433 . . . Kills 7 | . . . . 1 6 . . . Allies Corrupted . | . . . . . . . . . Allies Melted . | . . . . . . . . . Intel | -11 -10 -10 -10 -9 -8 -7 -7 -7 ------- Run | Scr Mat Min Exi Min Mat Fac Low Low Robot Analysis Total 1 | . 1 . . . . . . . Derelict Logs Recovered 5 | . . . . 3 . . 2 . Drone Launches . | . . . . . . . . . Drone Recoveries . | . . . . . . . . . Exploration | -11 -10 -10 -10 -9 -8 -7 -7 -7 ------------- Run | Scr Mat Min Exi Min Mat Fac Low Low Turns Passed 6203 | 56 488 25 369 516 1368 2089 964 328 Spaces Moved 4375 | 55 326 23 310 408 872 1255 873 253 Core 10 | 10 . . . . . . . . Treads 109 | . 8 . . . 101 . . . Legs 807 | . . . . . 124 683 . . Wheels 3353 | 45 318 23 310 408 647 572 873 157 Hover . | . . . . . . . . . Flight 96 | . . . . . . . . 96 Fastest Speed 26 | 50 80 110 100 120 95 105 105 26 Average Speed 111 | 74 97 110 113 120 116 123 105 75 Slowest Speed 180 | 80 160 110 120 120 180 152 105 105 Overloaded Moves . | . . . . . . . . . Propulsion Burnouts . | . . . . . . . . . Robots Hopped 4 | . . . . . . . . 4 Cave-ins Triggered . | . . . . . . . . . Exploration Rate (%) 49 | 5 64 8 68 84 49 35 96 35 Regions Visited 8 Branch Regions 5 Pre-discovered Areas 3 | . 1 . 1 1 . . . . Known Exits Taken 2 | . . . . . . 1 1 . Unknown Exits Taken 6 | 1 1 1 1 1 1 . . . Scrap Searched 8 | . . . . 2 . . 4 2 Spaces Dug 20 | . . . . . 5 15 . . Terrain Destroyed 166 | . . . . . 49 53 23 41 Melee 15 | . . . . . 5 10 . . Projectile 8 | . . . . . . 5 . 3 AOE 143 | . . . . . 44 38 23 38 Terrain Rammed . | . . . . . . . . . Walls Destroyed . | . . . . . . . . . Machines Disabled . | . . . . . . . . . Actions | -11 -10 -10 -10 -9 -8 -7 -7 -7 --------- Run | Scr Mat Min Exi Min Mat Fac Low Low Total 5232 | 66 437 22 326 432 1093 1605 904 347 Wait 292 | . 38 . 1 19 64 114 9 47 Move 4359 | 54 325 22 309 407 871 1254 872 245 Hop 4 | . . . . . . . . 4 Pick Up 84 | 6 10 . 3 2 27 32 1 3 Fast Attach 31 | 6 3 . 5 . 9 4 2 2 Attach 31 | . 1 . 1 . 10 9 1 9 Detach 5 | . . . . . 2 2 1 . Swap 98 | . 6 . 1 . 18 57 8 8 Drop 78 | . 13 . 6 1 19 31 2 6 Fire 219 | . 41 . . 1 58 91 8 20 Melee 29 | . . . . . 15 11 . 3 Ram 1 | . . . . 1 . . . . Kick . | . . . . . . . . . Crush 1 | . . . . 1 . . . . Escape Stasis . | . . . . . . . . . Rewire . | . . . . . . . . . Trap . | . . . . . . . . . Miscellaneous . | . . . . . . . . . Route ------- -11/Scrapyard -10/Materials -10/Mines -10/Exiles -9/Mines -8/Materials -7/Factory (discovered 8 exits: *Fac x4 / Sto x2 / *Low x2) -7/Lower Caves -7/Lower Caves History --------- Turn | Location | Event 9 | -11/Scrapyard | Discovered new exit (range 15) 57 | -11/Scrapyard | Entered Materials 148 | -10/Materials | Discovered new exit (range 14) 315 | -10/Materials | Build established: Mutant 545 | -10/Materials | Entered Mines 554 | -10/Mines | Deemed a non-threat by the Exiles lab entrance 554 | -10/Mines | Discovered new exit (range 5) 560 | -10/Mines | Assembled infested the area 570 | -10/Mines | Entered Exiles 597 | -10/Exiles | Met 8R-AWN 616 | -10/Exiles | Met EX-HEX 658 | -10/Exiles | Met EX-DEC 685 | -10/Exiles | Learned location of Zion (-7) 705 | -10/Exiles | Met EX-BIN 720 | -10/Exiles | Aligned with FarCom system 721 | -10/Exiles | Given EX-Vault access code 755 | -10/Exiles | Opened EX-Vault 763 | -10/Exiles | Found Gui. Plasma Cannon 769 | -10/Exiles | Found YOLO Cannon 781 | -10/Exiles | Found Cloak of Protection 815 | -10/Exiles | Warned to stay clear of 0b10 Research branches 927 | -10/Exiles | Discovered new exit (range 12) 939 | -10/Exiles | Left Exiles lab with Cloak of Protection 939 | -10/Exiles | Entered Mines 965 | -9/Mines | Met a Derelict bent on vengeance 1056 | -9/Mines | Learned 2 Materials zone layouts 1110 | -9/Mines | Assisted by bots powering up and referring to "LRC-V3" 1292 | -9/Mines | Discovered new exit (range 10) 1455 | -9/Mines | Entered Materials 1455 | -8/Materials | Accompanied by 5 allies 1455 | -8/Materials | Evolved 4 slots: Propulsion x2, Utility x2 1460 | -8/Materials | Led the pair of lost Derelicts to an unsafe place 1779 | -8/Materials | Build established: Hauler-Mutant 2010 | -8/Materials | Discovered new exit (range 12) 2277 | -8/Materials | Lost 5 parts (1p2n2w) 2823 | -8/Materials | Entered Factory 2823 | -7/Factory | Evolved 2 slots: Utility x2 2824 | -7/Factory | Identified exit to Storage 3220 | -7/Factory | Discovered new exit (range 13) 3461 | -7/Factory | Identified exit to Factory 3869 | -7/Factory | Fabricated Imp. Flight Unit? 4143 | -7/Factory | Fabricated Imp. Flight Unit? 4224 | -7/Factory | Fabricated Imp. Flight Unit? 4366 | -7/Factory | Fabricated Imp. Flight Unit? 4418 | -7/Factory | Fabricated Hacking Suite (x1) 4698 | -7/Factory | Identified exit to Lower Caves 4912 | -7/Factory | Entered Lower Caves 5123 | -7/Lower Caves | Identified exit to Lower Caves 5241 | -7/Lower Caves | Attracted the attention of an 0b10 checkpoint 5456 | -7/Lower Caves | Learned Factory interactive machine intel 5876 | -7/Lower Caves | Entered another Lower Caves area 5890 | -7/Lower Caves | Attracted the attention of an 0b10 checkpoint 6069 | -7/Lower Caves | Attracted the attention of an 0b10 outpost 6107 | -7/Lower Caves | Core integrity fell below 50% 6126 | -7/Lower Caves | Destroyed 9 combat bots 6131 | -7/Lower Caves | Core integrity fell below 20% 6189 | -7/Lower Caves | Lost 13 parts (3p3n3u4w) 6204 | -7/Lower Caves | Destroyed by S-27 Virus with Autogun Last Messages --------------- A strange signal echoes through the caves. 06130_ Extracted 89 energy. 06130_ Dropped Lrg. Storage Unit. 06130_ Dropped Imp. Utility Shielding. 06131_ Extracted 19 energy. 06133_ Acquired 11 matter. 06134_ Acquired 16 matter. 06134_ Penetrated by Slug. 06134_ Machine disabled. 06137_ Slug penetrates Wall. 06153_ Slug penetrates B-48 Gladiator. 06158_ System Shield destroyed. 06158_ Slug penetrates M-28 Smith. 06164_ Slug penetrates Wall. 06185_ Dropped Adv. EMP Blaster. 06186_ Acquired 48 matter. 06186_ Acquired Com. Battery. 06192_ Acquired Neutrino Core. 06198_ Dropped Neutrino Core. 06201_ Acquired 75 matter. Map ----- +----------------------------------------------------+ | | | ?????????????????????????????????????????????????? | | ?????????????????????????????????????????????????? | | ?????????????????????????????????????????????????? | | ?????????????????????????????????????????????????? | | ?????????????????????????????????????????????????? | | ?????????????????????????????????????????????????? | | ?????????????????????????????????????????????????? | | ?????????????????????????????????????????????????? | | ?????????????????????????????????????????????????? | | ?????????????????????????????????????????????????? | | ?????????????????????????????????????????????????? | | ?????????????????????????????????????????????????? | | ?????????????????????????????????????????????????? | | ?????????????????????????????????????????????????? | | ???????????????????????????????????#???????????### | | ??????????????????????????????????? #??######### # | | ???????????????????????????????????# ### *## ] # | | ??????????????????????????????????? ## = # | | ???????????????????????????????#??## #?## #! # | | ??????????????????????????????# ### ##?## ## | | ?????????????????????????###??# # #### | | ?????????????????????????# ##?? # # | | ??????????????????#??????# #### #?# # ## | | ?????????????????## ### #### # ###### # | | ?????????????????# @ s #?### # | | ?????????????????### # ## "%" ##???# # | | ???????????????????# ## ## # # #????# # | | ?????????????????# ### ### ### ??? # | | ?????????????????# ###?# #?#####??? ? # | | ?????????????????## #???# #????????? ###### | | ??????????????????# #???# ?????????? #????# | | ?????????????????# # #???###?????????? ????# | | ?????????????????# # #???????????????? ???# | | ?????????????????# ## ?????????????????? #??# | | ?????????????????# ##?# ???????????????????#?# | | ????????????????? #???###?????????????????????### | | ???????????????? ?????????????????????????????#? | | ?????????????????????????????????????????#???????? | | ?????????????????????????????????????????????????? | | ?????????????????????????????????????????????????? | | ?????????????????????????????????????????????????? | | ?????????????????????????????????????????? ??????? | | ?????????????????????????????????????????????????? | | ?????????????????????????????????????????????????? | | ?????????????????????????????????????????????????? | | ?????????????????????????????????????????????????? | | ?????????????????????????????????????????????????? | | ?????????????????????????????????????????????????? | | ?????????????????????????????????????????????????? | +----------------------------------------------------+ Best States ------------- Heat Dissipation 48 Energy Generation 16 Energy Capacity 290 Matter Stores 300 Matter Capacity 300 Sight Range 16 Terrain Scan Range 20 Terrain Scan Density 10 Armor Coverage 225 Resistance: KI 20 Utility Shielding 66 Weapon Shielding 33 Evasion (%) 64 Recoil Reduction 2 Defensive Hacking 10 Item Schematics ----------------- Imp. Flight Unit | -8/Materials | Scanalyzed Adv. Beam Rifle | -8/Materials | Scanalyzed Hacking Suite | -7/Factory | Scanalyzed System Shield | -7/Factory | Hacked Robot Schematics ------------------ None Fabricated ------------ Imp. Flight Unit | x1 | -7/Factory Imp. Flight Unit | x1 | -7/Factory Imp. Flight Unit | x1 | -7/Factory Imp. Flight Unit | x1 | -7/Factory Hacking Suite | x1 | -7/Factory Alien Tech Used ----------------- None Achievements -------------- None Challenges ------------ None Game ------ Seed MasterDisruptorExpander Manual? 0 Play Time 01:12:52 Cumulative 156.3 hours Start 2021.08.27 @ 18:39:56 End 2021.08.27 @ 19:53:39 Sessions 1 Manual Loads 0 Difficulty Rogue Special Mode None Game No. 48 Rogue 48 Adventurer 0 Explorer 0 Win Type - Total 6 Types 5/0/1/0/0/0/0/0/0 Lore% 74 Gallery% 83 Achievement% 64 Wizard Run 0 Options --------- ASCII 0 Keyboard 0 Movement Numpad Keybinds 0 Fullscreen 1 Font 14/SmallcapsGlow Map View 84x54 Tactical HUD 1 Map Filters NONE Filters NONE Steam 1 RUN: a845ffbd-0b5c-4cc1-a69d-bab21552254c